[Event "Championnat du monde jeunes U12F"]
[Date "2024.11.16"]
[White "Pratitee Bordoloi"]
[Black "Sabou, Stefania Theodora"]
[WhiteElo "1929"]
[BlackElo "1736"]
[Round "2.2"]
[Result "1-0"]
[TimeControl "5400+30"]

1. e4 {[%clk 1:30:55]} 1... c5 {[%clk 1:30:45]} 2. Nf3 {[%clk 1:31:18]} 2... g6
{[%clk 1:31:01]} 3. d4 {[%clk 1:31:41]} 3... cxd4 {[%clk 1:31:24]} 4. Nxd4
{[%clk 1:32:06]} 4... Bg7 {[%clk 1:31:48]} 5. c4 {[%clk 1:32:16]} 5... Nc6
{[%clk 1:32:07]} 6. Be3 {[%clk 1:32:37]} 6... d6 {[%clk 1:32:18]} 7. Nc3 {[%clk
1:32:53]} 7... Nf6 {[%clk 1:32:38]} 8. f3 {[%clk 1:32:54]} 8... O-O {[%clk
1:31:52]} 9. Qd2 {[%clk 1:32:47]} 9... Nxd4 {[%clk 1:30:56]} 10. Bxd4 {[%clk
1:33:06]} 10... Be6 {[%clk 1:30:53]} 11. b3 {[%clk 1:33:03]} 11... Qa5 {[%clk
1:30:21]} 12. Rc1 {[%clk 1:32:24]} 12... Nd7 {[%clk 1:25:00]} 13. Bxg7 {[%clk
1:30:33]} 13... Kxg7 {[%clk 1:25:25]} 14. Be2 {[%clk 1:29:28]} 14... Qh5 {[%clk
1:14:15]} 15. O-O {[%clk 1:27:15]} 15... Qc5+ {[%clk 1:10:29]} 16. Kh1 {[%clk
1:27:03]} 16... h6 {[%clk 1:00:32]} 17. f4 {[%clk 1:23:34]} 17... Nf6 {[%clk
0:57:18]} 18. h3 {[%clk 1:13:37]} 18... g5 {[%clk 0:51:39]} 19. b4 {[%clk
1:02:00]} 19... Qxb4 {[%clk 0:37:57]} 20. fxg5 {[%clk 1:01:48]} 20... Nh7 {[%clk
0:36:25]} 21. Rb1 {[%clk 0:57:42]} 21... Qc5 {[%clk 0:31:53]} 22. Rb5 {[%clk
0:55:25]} 22... Qc8 {[%clk 0:29:16]} 23. Nd5 {[%clk 0:44:25]} 23... Bxd5 {[%clk
0:16:26]} 24. Rxd5 {[%clk 0:44:22]} 24... Qe6 {[%clk 0:13:02]} 25. Bg4 {[%clk
0:35:13]} 25... Qg6 {[%clk 0:11:18]} 26. Bf5 {[%clk 0:26:42]} 26... Qxg5 {[%clk
0:09:06]} 27. Qe1 {[%clk 0:25:28]} 27... Nf6 {[%clk 0:08:15]} 28. h4 {[%clk
0:25:27]} 28... Qh5 {[%clk 0:08:36]} 29. g4 {[%clk 0:25:37]} 29... Nxg4 {[%clk
0:07:30]} 30. Bxg4 {[%clk 0:25:35]} 30... Qg6 {[%clk 0:07:57]} 31. h5 {[%clk
0:25:01]} 31... Qxg4 {[%clk 0:07:29]} 32. Rg1 {[%clk 0:25:13]} 32... Qxg1+
{[%clk 0:07:58]} 33. Qxg1+ {[%clk 0:25:32]} 33... Kh7 {[%clk 0:08:27]} 34. Qb1
{[%clk 0:24:43]} 34... Kg7 {[%clk 0:08:13]} 35. Rd2 {[%clk 0:24:14]} 35... b6
{[%clk 0:07:51]} 36. Rg2+ {[%clk 0:23:33]} 36... Kh8 {[%clk 0:08:13]} 37. Qc1
{[%clk 0:23:52]} 37... Kh7 {[%clk 0:08:32]} 38. Qf4 {[%clk 0:24:10]} 38... Rad8
{[%clk 0:08:09]} 39. Qg4 {[%clk 0:23:14]} 39... Rg8 {[%clk 0:08:05]} 40. Qf5+
{[%clk 0:23:37]} 40... Kh8 {[%clk 0:08:23]} 41. Qxf7 {[%clk 0:23:48]} 41... Rxg2
{[%clk 0:08:25]} 42. Kxg2 {[%clk 0:24:08]} 42... Rg8+ {[%clk 0:08:51]} 43. Kf3
{[%clk 0:23:20]} 43... Rg7 {[%clk 0:09:16]} 44. Qe8+ {[%clk 0:23:45]} 44... Kh7
{[%clk 0:09:37]} 45. Qb8 {[%clk 0:24:05]} 45... Rf7+ {[%clk 0:08:32]} 46. Ke3
{[%clk 0:24:21]} 46... Kg7 {[%clk 0:08:37]} 47. Qxa7 {[%clk 0:24:41]} 47... Kf6
{[%clk 0:09:01]} 48. Qxb6 {[%clk 0:25:04]} 48... Kg5 {[%clk 0:09:23]} 49. Qb5+
{[%clk 0:25:17]} 49... Kg4 {[%clk 0:09:41]} 50. a4 {[%clk 0:25:22]} 1-0

[Variant "Standard"]
[Site "Europe Echecs"]

[Event "Championnat du monde jeunes U12F"]
[Date "2024.11.16"]
[White "Buyankhishig, Batpelden"]
[Black "Ivaschenko, Anna"]
[WhiteElo "1867"]
[BlackElo "1732"]
[Round "2.3"]
[Result "1-0"]
[TimeControl "5400+30"]

1. d4 {[%clk 1:30:52]} 1... Nf6 {[%clk 1:30:58]} 2. c4 {[%clk 1:31:08]} 2... e6
{[%clk 1:31:24]} 3. Nc3 {[%clk 1:31:15]} 3... Bb4 {[%clk 1:31:49]} 4. e3 {[%clk
1:31:18]} 4... O-O {[%clk 1:32:02]} 5. Bd3 {[%clk 1:30:53]} 5... Re8 {[%clk
1:32:09]} 6. Nf3 {[%clk 1:29:29]} 6... Bxc3+ {[%clk 1:24:55]} 7. bxc3 {[%clk
1:29:41]} 7... d6 {[%clk 1:24:30]} 8. O-O {[%clk 1:21:14]} 8... Nbd7 {[%clk
1:21:54]} 9. e4 {[%clk 1:20:51]} 9... e5 {[%clk 1:21:45]} 10. Qc2 {[%clk
1:18:52]} 10... b6 {[%clk 1:09:48]} 11. Bg5 {[%clk 1:15:12]} 11... h6 {[%clk
1:08:46]} 12. Bd2 {[%clk 1:12:17]} 12... Nf8 {[%clk 1:03:34]} 13. Nh4 {[%clk
1:08:21]} 13... g5 {[%clk 0:56:48]} 14. Nf5 {[%clk 1:06:37]} 14... Bxf5 {[%clk
0:56:09]} 15. exf5 {[%clk 1:06:58]} 15... Qd7 {[%clk 0:51:51]} 16. f3 {[%clk
1:03:57]} 16... N8h7 {[%clk 0:49:42]} 17. h4 {[%clk 1:00:00]} 17... Kh8 {[%clk
0:47:12]} 18. hxg5 {[%clk 0:58:51]} 18... hxg5 {[%clk 0:47:17]} 19. Rae1 {[%clk
0:54:18]} 19... Nh5 {[%clk 0:42:51]} 20. Kf2 {[%clk 0:49:53]} 20... f6 {[%clk
0:30:48]} 21. Be4 {[%clk 0:47:44]} 21... Rad8 {[%clk 0:29:35]} 22. Rh1 {[%clk
0:47:38]} 22... Ng7 {[%clk 0:29:15]} 23. Bd5 {[%clk 0:45:58]} 23... c6 24. Rxh7+
{[%clk 0:46:07]} 24... Kxh7 {[%clk 0:27:08]} 25. Rh1+ {[%clk 0:46:31]} 25... Nh5
{[%clk 0:27:30]} 26. Rxh5+ {[%clk 0:46:55]} 26... Kg7 {[%clk 0:27:51]} 27. Be6
{[%clk 0:47:02]} 27... Qe7 {[%clk 0:25:31]} 28. Bxg5 {[%clk 0:45:39]} 28... Rh8
{[%clk 0:24:59]} 29. Rxh8 {[%clk 0:44:57]} 29... Rxh8 {[%clk 0:25:06]} 30. Be3
{[%clk 0:45:01]} 30... Qe8 {[%clk 0:24:23]} 31. Qe4 {[%clk 0:41:53]} 31... Rh1
{[%clk 0:22:52]} 32. Qg4+ {[%clk 0:40:53]} 32... Kh8 {[%clk 0:22:39]} 33. c5
{[%clk 0:40:17]} 33... bxc5 {[%clk 0:22:19]} 34. dxe5 {[%clk 0:40:26]} 34...
dxe5 {[%clk 0:22:15]} 35. Bxc5 {[%clk 0:39:53]} 35... Qd8 {[%clk 0:21:22]} 36.
Bd6 {[%clk 0:37:54]} 36... Rh7 {[%clk 0:20:41]} 37. Qb4 {[%clk 0:36:40]} 37...
a5 {[%clk 0:20:18]} 38. Qc5 {[%clk 0:36:30]} 38... Qa8 {[%clk 0:18:58]} 39. Bxe5
{[%clk 0:32:39]} 39... Qd8 {[%clk 0:14:39]} 40. Qd4 {[%clk 0:31:33]} 40... Qxd4+
{[%clk 0:14:35]} 41. Bxd4 {[%clk 0:32:00]} 41... Kg7 {[%clk 0:14:26]} 42. g4
{[%clk 0:32:19]} 42... Kf8 {[%clk 0:10:36]} 43. Bxf6 {[%clk 0:32:40]} 43... c5
{[%clk 0:09:24]} 44. g5 {[%clk 0:33:03]} 44... c4 {[%clk 0:09:18]} 45. g6 {[%clk
0:33:24]} 45... Rf7 {[%clk 0:09:25]} 46. Bxf7 {[%clk 0:33:24]} 46... a4 {[%clk
0:09:49]} 47. Be6 {[%clk 0:33:46]} 47... Ke8 {[%clk 0:10:09]} 48. g7 {[%clk
0:34:08]} 1-0

[Variant "Standard"]
[Site "Europe Echecs"]

[Event "Championnat du monde jeunes U12F"]
[Date "2024.11.16"]
[White "Xu, Melissa"]
[Black "Ahmed Mohamed, Zakaa"]
[WhiteElo "1731"]
[BlackElo "1866"]
[Round "2.4"]
[Result "0-1"]
[TimeControl "5400+30"]

1. e4 {[%clk 1:30:57]} 1... e5 {[%clk 1:30:53]} 2. Nf3 {[%clk 1:31:07]} 2... d6
{[%clk 1:31:16]} 3. d4 {[%clk 1:31:31]} 3... Nd7 {[%clk 1:30:51]} 4. Bc4 {[%clk
1:30:45]} 4... c6 {[%clk 1:31:03]} 5. O-O {[%clk 1:29:18]} 5... Be7 {[%clk
1:31:25]} 6. Nc3 {[%clk 1:26:55]} 6... Ngf6 {[%clk 1:31:07]} 7. a4 {[%clk
1:23:50]} 7... O-O {[%clk 1:30:22]} 8. Re1 {[%clk 1:22:35]} 8... Qc7 {[%clk
1:29:40]} 9. Bb3 {[%clk 1:21:45]} 9... h6 {[%clk 1:28:47]} 10. h3 {[%clk
1:18:12]} 10... Re8 {[%clk 1:27:15]} 11. Be3 {[%clk 1:16:48]} 11... Nf8 {[%clk
1:25:06]} 12. Qd2 {[%clk 1:14:48]} 12... Ng6 {[%clk 1:23:07]} 13. Rad1 {[%clk
1:10:42]} 13... Nh5 {[%clk 1:20:29]} 14. d5 {[%clk 1:08:05]} 14... c5 {[%clk
1:19:47]} 15. Ne2 {[%clk 1:07:20]} 15... a6 {[%clk 1:16:20]} 16. c4 {[%clk
1:05:29]} 16... Bd7 {[%clk 1:12:50]} 17. Nh2 {[%clk 1:02:38]} 17... Qb6 {[%clk
1:06:56]} 18. Qc2 {[%clk 0:59:53]} 18... Nf6 {[%clk 1:02:04]} 19. Nc3 {[%clk
0:58:13]} 19... Rf8 {[%clk 1:00:03]} 20. Rf1 {[%clk 0:56:12]} 20... Nh5 {[%clk
0:54:52]} 21. Ne2 {[%clk 0:52:48]} 21... Qd8 {[%clk 0:44:52]} 22. f4 {[%clk
0:51:28]} 22... exf4 {[%clk 0:43:32]} 23. Bxf4 {[%clk 0:49:58]} 23... Nhxf4
{[%clk 0:43:18]} 24. Nxf4 {[%clk 0:50:08]} 24... Nxf4 {[%clk 0:43:42]} 25. Rxf4
{[%clk 0:50:27]} 25... Bg5 {[%clk 0:43:51]} 26. Rf3 {[%clk 0:50:02]} 26... Qe7
{[%clk 0:42:45]} 27. Re1 {[%clk 0:48:13]} 27... Qe5 {[%clk 0:41:11]} 28. Rc3
{[%clk 0:45:14]} 28... Bf6 {[%clk 0:36:44]} 29. Re2 {[%clk 0:40:35]} 29... Rae8
{[%clk 0:34:24]} 30. g4 {[%clk 0:33:32]} 30... h5 {[%clk 0:32:21]} 31. Qd3
{[%clk 0:29:44]} 31... hxg4 {[%clk 0:30:34]} 32. hxg4 {[%clk 0:28:03]} 32... Qf4
{[%clk 0:29:39]} 33. Qg3 {[%clk 0:24:20]} 33... Rxe4 {[%clk 0:28:55]} 34. Qxf4
{[%clk 0:22:05]} 34... Rxf4 {[%clk 0:29:20]} 35. Rg3 {[%clk 0:21:02]} 35... b5
{[%clk 0:28:46]} 36. axb5 {[%clk 0:19:34]} 36... axb5 {[%clk 0:29:10]} 37. cxb5
{[%clk 0:18:57]} 37... Bxb5 {[%clk 0:29:34]} 38. Rd2 {[%clk 0:17:26]} 38... c4
{[%clk 0:29:01]} 39. Bd1 {[%clk 0:14:04]} 39... Rd4 {[%clk 0:29:14]} 40. Rgg2
{[%clk 0:12:45]} 40... Re8 {[%clk 0:28:00]} 41. Nf3 {[%clk 0:12:40]} 41... Rxd2
{[%clk 0:27:53]} 42. Rxd2 {[%clk 0:13:02]} 42... Re4 {[%clk 0:26:55]} 43. Rg2
{[%clk 0:10:49]} 43... Ba6 {[%clk 0:25:21]} 44. g5 {[%clk 0:10:48]} 44... Bd4+
{[%clk 0:25:37]} 45. Nxd4 {[%clk 0:10:17]} 45... Rxd4 {[%clk 0:26:00]} 46. Bf3
{[%clk 0:10:25]} 46... Bb7 {[%clk 0:26:03]} 47. Rc2 {[%clk 0:10:30]} 47... Bxd5
{[%clk 0:26:08]} 48. Bxd5 {[%clk 0:10:49]} 48... Rxd5 {[%clk 0:26:34]} 49. Rxc4
{[%clk 0:11:12]} 49... Rxg5+ {[%clk 0:27:00]} 50. Kf2 {[%clk 0:11:34]} 50... Rb5
{[%clk 0:27:22]} 51. Rc2 {[%clk 0:11:55]} 51... Kh7 {[%clk 0:27:01]} 52. Rd2
{[%clk 0:12:16]} 52... d5 {[%clk 0:27:15]} 53. Kf3 {[%clk 0:12:39]} 53... Kg6
{[%clk 0:27:36]} 54. Rd4 {[%clk 0:12:47]} 54... Rxb2 {[%clk 0:27:52]} 55. Rxd5
{[%clk 0:13:13]} 55... Rb4 {[%clk 0:28:12]} 56. Kg3 {[%clk 0:13:37]} 56... f5
{[%clk 0:28:20]} 57. Rd6+ {[%clk 0:13:57]} 57... Kg5 {[%clk 0:28:42]} 58. Rd5
{[%clk 0:14:23]} 58... Rb3+ {[%clk 0:29:07]} 59. Kg2 {[%clk 0:14:49]} 59... Kg4
{[%clk 0:29:31]} 60. Rd4+ {[%clk 0:15:14]} 60... f4 {[%clk 0:29:56]} 61. Rc4
{[%clk 0:15:02]} 61... g5 {[%clk 0:30:03]} 62. Rd4 {[%clk 0:15:27]} 62... Rb2+
{[%clk 0:30:10]} 63. Kg1 {[%clk 0:15:52]} 63... Kg3 {[%clk 0:30:36]} 64. Rd3+
{[%clk 0:16:18]} 64... f3 {[%clk 0:31:00]} 65. Rc3 {[%clk 0:16:42]} 65... Rb1+
{[%clk 0:31:24]} 0-1

[Variant "Standard"]
[Site "Europe Echecs"]

[Event "Championnat du monde jeunes U12F"]
[Date "2024.11.16"]
[White "Li, Peishan"]
[Black "Tran Le Vy"]
[WhiteElo "1729"]
[BlackElo "1854"]
[Round "2.5"]
[Result "0-1"]
[TimeControl "5400+30"]

1. e4 {[%clk 1:30:57]} 1... e5 {[%clk 1:30:53]} 2. Nf3 {[%clk 1:31:22]} 2... Nc6
{[%clk 1:31:09]} 3. Bc4 {[%clk 1:31:45]} 3... Bc5 {[%clk 1:31:32]} 4. O-O {[%clk
1:32:09]} 4... Nf6 {[%clk 1:30:54]} 5. d3 {[%clk 1:32:30]} 5... d6 {[%clk
1:30:13]} 6. c3 {[%clk 1:32:01]} 6... O-O {[%clk 1:29:31]} 7. b4 {[%clk
1:32:18]} 7... Bb6 {[%clk 1:29:51]} 8. a4 {[%clk 1:32:43]} 8... a6 {[%clk
1:29:25]} 9. Nbd2 {[%clk 1:31:39]} 9... Ne7 {[%clk 1:24:28]} 10. a5 {[%clk
1:30:05]} 10... Ba7 {[%clk 1:24:47]} 11. Re1 {[%clk 1:28:50]} 11... Ng6 {[%clk
1:18:28]} 12. Nf1 {[%clk 1:28:21]} 12... c6 {[%clk 1:16:04]} 13. Bb3 {[%clk
1:24:07]} 13... d5 {[%clk 1:11:34]} 14. exd5 {[%clk 1:19:06]} 14... cxd5 {[%clk
1:08:45]} 15. Bg5 {[%clk 1:12:31]} 15... h6 {[%clk 1:01:32]} 16. Bxf6 {[%clk
1:05:29]} 16... gxf6 {[%clk 1:01:51]} 17. Qd2 {[%clk 1:00:56]} 17... Kh7 {[%clk
1:02:00]} 18. h3 {[%clk 1:00:30]} 18... Be6 {[%clk 0:59:52]} 19. Ng3 {[%clk
0:54:31]} 19... Rg8 {[%clk 0:58:34]} 20. Kh1 {[%clk 0:50:58]} 20... Rc8 {[%clk
0:53:01]} 21. Rad1 {[%clk 0:33:21]} 21... Bb8 {[%clk 0:35:12]} 22. c4 {[%clk
0:29:32]} 22... dxc4 {[%clk 0:24:04]} 23. dxc4 {[%clk 0:23:33]} 23... Qxd2
{[%clk 0:20:28]} 24. Nxd2 {[%clk 0:23:34]} 24... f5 {[%clk 0:19:38]} 25. c5
{[%clk 0:21:11]} 25... Rcd8 {[%clk 0:16:29]} 26. Bxe6 {[%clk 0:14:33]} 26...
fxe6 {[%clk 0:16:52]} 27. Nc4 {[%clk 0:14:27]} 27... e4 {[%clk 0:15:01]} 28. Ne2
{[%clk 0:09:10]} 28... Ne5 {[%clk 0:12:52]} 29. Nxe5 {[%clk 0:06:42]} 29... Bxe5
{[%clk 0:13:08]} 30. f4 {[%clk 0:03:37]} 30... Bf6 {[%clk 0:09:30]} 31. Kg1
{[%clk 0:02:22]} 31... Rd3 {[%clk 0:09:45]} 32. Nc1 {[%clk 0:02:01]} 32... Rd5
{[%clk 0:07:11]} 33. Rxd5 {[%clk 0:01:26]} 33... exd5 {[%clk 0:07:34]} 34. Rd1
{[%clk 0:01:34]} 34... d4 {[%clk 0:07:55]} 35. Kf2 {[%clk 0:01:08]} 35... d3
{[%clk 0:08:10]} 36. Nb3 {[%clk 0:01:02]} 36... Bh4+ {[%clk 0:07:15]} 37. Kf1
{[%clk 0:01:27]} 37... Rd8 {[%clk 0:07:12]} 38. Nc1 {[%clk 0:00:59]} 38... Bg3
{[%clk 0:07:35]} 39. Kg1 {[%clk 0:00:46]} 39... e3 {[%clk 0:07:16]} 40. Nxd3
{[%clk 0:00:42]} 40... e2 {[%clk 0:07:39]} 41. Rd2 {[%clk 0:00:46]} 41... Rxd3
{[%clk 0:08:01]} 0-1

[Variant "Standard"]
[Site "Europe Echecs"]

[Event "Championnat du monde jeunes U12F"]
[Date "2024.11.16"]
[White "Xue, Tianhao"]
[Black "Harutyunyan, Gabriela"]
[WhiteElo "1835"]
[BlackElo "1730"]
[Round "2.6"]
[Result "0-1"]
[TimeControl "5400+30"]

1. e4 {[%clk 1:30:58]} 1... c5 {[%clk 1:30:37]} 2. Nf3 {[%clk 1:31:23]} 2... e6
{[%clk 1:31:02]} 3. d4 {[%clk 1:31:50]} 3... cxd4 {[%clk 1:31:19]} 4. Nxd4
{[%clk 1:32:17]} 4... Nf6 {[%clk 1:31:40]} 5. Nc3 {[%clk 1:32:44]} 5... Nc6
{[%clk 1:31:55]} 6. Nxc6 {[%clk 1:33:08]} 6... bxc6 {[%clk 1:32:18]} 7. e5
{[%clk 1:33:36]} 7... Nd5 {[%clk 1:32:36]} 8. Ne4 {[%clk 1:34:01]} 8... Qc7
{[%clk 1:33:00]} 9. f4 {[%clk 1:34:26]} 9... Rb8 {[%clk 1:33:24]} 10. c4 {[%clk
1:34:50]} 10... Bb4+ {[%clk 1:33:41]} 11. Ke2 {[%clk 1:35:17]} 11... O-O {[%clk
1:33:54]} 12. a3 {[%clk 1:35:45]} 12... Be7 {[%clk 1:34:17]} 13. cxd5 {[%clk
1:36:06]} 13... cxd5 {[%clk 1:34:41]} 14. Nd6 {[%clk 1:36:23]} 14... f6 {[%clk
1:33:21]} 15. Nxc8 {[%clk 1:36:47]} 15... Rfxc8 {[%clk 1:33:15]} 16. exf6 {[%clk
1:35:14]} 16... Bxf6 {[%clk 1:32:23]} 17. h4 {[%clk 1:07:52]} 17... Bxb2 {[%clk
1:24:30]} 18. Bxb2 {[%clk 1:06:40]} 18... Rxb2+ {[%clk 1:24:54]} 19. Kf3 {[%clk
1:06:47]} 19... Qb6 {[%clk 1:22:52]} 20. Be2 {[%clk 0:41:44]} 20... h5 {[%clk
1:20:17]} 21. Kg3 {[%clk 0:16:15]} 21... Qe3+ {[%clk 1:19:52]} 22. Bf3 {[%clk
0:15:45]} 22... Rc4 {[%clk 1:19:07]} 23. Qc1 {[%clk 0:03:54]} 23... Rxc1 {[%clk
1:19:09]} 24. Rhxc1 {[%clk 0:04:18]} 24... e5 {[%clk 1:18:19]} 25. fxe5 {[%clk
0:04:20]} 25... Qxe5+ {[%clk 1:18:43]} 26. Kh3 {[%clk 0:04:16]} 26... Qf5+
{[%clk 1:19:06]} 27. Kg3 {[%clk 0:04:27]} 27... Rb3 {[%clk 1:18:57]} 28. Kf2
{[%clk 0:03:35]} 28... Qf4 {[%clk 1:18:59]} 29. Kg1 {[%clk 0:03:37]} 29... Qd4+
{[%clk 1:19:12]} 30. Kh1 {[%clk 0:03:35]} 30... Qxh4+ {[%clk 1:19:32]} 31. Kg1
{[%clk 0:03:55]} 31... Qg5 {[%clk 1:19:27]} 32. Kh1 {[%clk 0:03:35]} 32... Kh7
{[%clk 1:19:12]} 33. Rd1 {[%clk 0:03:10]} 33... Qh4+ {[%clk 1:19:04]} 34. Kg1
{[%clk 0:03:15]} 34... d4 {[%clk 1:19:06]} 35. Ra2 {[%clk 0:02:22]} 35... Qg5
{[%clk 1:18:38]} 36. Kh2 {[%clk 0:01:32]} 36... h4 {[%clk 1:17:33]} 37. Rad2
{[%clk 0:00:42]} 37... Qf4+ {[%clk 1:15:32]} 38. Kh1 {[%clk 0:00:51]} 38... h3
{[%clk 1:14:48]} 39. Rxd4 {[%clk 0:00:56]} 39... hxg2+ {[%clk 1:14:27]} 40. Bxg2
{[%clk 0:01:24]} 40... Qh6+ {[%clk 1:14:00]} 41. Kg1 {[%clk 0:01:52]} 41... Rg3
{[%clk 1:13:00]} 42. R4d3 {[%clk 0:01:22]} 42... Rg4 {[%clk 1:10:55]} 43. Kf1
{[%clk 0:01:09]} 43... Qf4+ {[%clk 1:10:10]} 44. Kg1 {[%clk 0:01:02]} 44... Qg5
{[%clk 1:09:30]} 45. R1d2 {[%clk 0:01:06]} 45... Qc5+ {[%clk 1:09:24]} 46. Kh2
{[%clk 0:00:46]} 46... Rh4+ {[%clk 1:09:44]} 47. Rh3 {[%clk 0:00:55]} 47... Qe5+
{[%clk 1:10:07]} 48. Kh1 {[%clk 0:00:40]} 48... Rxh3+ {[%clk 1:10:32]} 49. Bxh3
{[%clk 0:01:06]} 49... Qe1+ {[%clk 1:10:58]} 0-1

[Variant "Standard"]
[Site "Europe Echecs"]

[Event "Championnat du monde jeunes U12F"]
[Date "2024.11.16"]
[White "Xu, Luna Yuexiu"]
[Black "Oksanen, Maria"]
[WhiteElo "1821"]
[BlackElo "1725"]
[Round "2.7"]
[Result "1-0"]
[TimeControl "5400+30"]

1. e4 {[%clk 1:30:57]} 1... c5 {[%clk 1:30:57]} 2. Nc3 {[%clk 1:31:17]} 2... d6
{[%clk 1:31:14]} 3. g3 {[%clk 1:31:28]} 3... Nc6 {[%clk 1:31:14]} 4. Nge2 {[%clk
1:31:36]} 4... Nf6 {[%clk 1:30:57]} 5. Bg2 {[%clk 1:31:49]} 5... g6 {[%clk
1:30:33]} 6. d3 {[%clk 1:31:47]} 6... Bg7 {[%clk 1:30:08]} 7. h3 {[%clk
1:31:46]} 7... Rb8 {[%clk 1:29:17]} 8. Be3 {[%clk 1:29:13]} 8... b5 {[%clk
1:28:28]} 9. Qd2 {[%clk 1:28:10]} 9... h5 {[%clk 1:19:17]} 10. d4 {[%clk
1:28:01]} 10... b4 {[%clk 1:17:27]} 11. Nd1 {[%clk 1:27:50]} 11... Nd7 {[%clk
0:59:00]} 12. O-O {[%clk 1:22:55]} 12... Na5 {[%clk 0:58:14]} 13. b3 {[%clk
1:17:07]} 13... Ba6 {[%clk 0:57:27]} 14. c4 {[%clk 1:14:54]} 14... bxc3 {[%clk
0:52:40]} 15. Ndxc3 {[%clk 1:15:09]} 15... Nc6 {[%clk 0:45:10]} 16. Rfd1 {[%clk
1:14:24]} 16... Rb4 {[%clk 0:38:21]} 17. dxc5 {[%clk 1:09:52]} 17... Bxe2 {[%clk
0:36:57]} 18. Nxe2 {[%clk 1:09:59]} 18... Bxa1 {[%clk 0:36:26]} 19. Rxa1 {[%clk
1:10:20]} 19... dxc5 {[%clk 0:32:33]} 20. Qc3 {[%clk 1:08:19]} 20... e5 {[%clk
0:27:33]} 21. Bxc5 {[%clk 1:05:01]} 21... Nxc5 {[%clk 0:27:14]} 22. Qxc5 {[%clk
1:05:24]} 22... Rb6 {[%clk 0:26:48]} 23. Rc1 {[%clk 1:03:50]} 23... Qe7 {[%clk
0:26:38]} 24. Qd5 {[%clk 1:02:19]} 24... Qe6 {[%clk 0:25:47]} 25. Nc3 {[%clk
1:01:00]} 25... Nd8 {[%clk 0:20:36]} 26. Qc5 {[%clk 0:57:48]} 26... Qd6 {[%clk
0:19:44]} 27. Qc8 {[%clk 0:54:44]} 27... O-O {[%clk 0:17:37]} 28. Nd5 {[%clk
0:52:09]} 28... Nc6 {[%clk 0:16:30]} 29. Nxb6 {[%clk 0:50:56]} 29... Nd4 {[%clk
0:08:13]} 30. Qc4 {[%clk 0:49:43]} 30... axb6 {[%clk 0:08:19]} 31. Kf1 {[%clk
0:42:35]} 31... Qa3 {[%clk 0:08:02]} 32. Ra1 {[%clk 0:36:03]} 32... Qb2 {[%clk
0:07:23]} 33. Qc1 {[%clk 0:31:28]} 33... Qe2+ {[%clk 0:04:39]} 34. Kg1 {[%clk
0:31:50]} 34... Nc2 {[%clk 0:03:47]} 35. Rb1 {[%clk 0:29:59]} 35... Nb4 {[%clk
0:03:54]} 36. Rb2 {[%clk 0:29:06]} 36... Qa6 {[%clk 0:04:02]} 37. Qc4 {[%clk
0:28:10]} 37... Qa3 {[%clk 0:04:20]} 38. Rd2 {[%clk 0:25:16]} 38... Nxa2 {[%clk
0:04:32]} 39. Rd1 {[%clk 0:23:46]} 39... Qb2 {[%clk 0:04:13]} 40. Rd6 {[%clk
0:20:06]} 40... Nc1 {[%clk 0:02:21]} 41. Rxb6 {[%clk 0:18:24]} 41... Qa1 {[%clk
0:02:44]} 42. Kh2 {[%clk 0:17:33]} 42... Qb2 {[%clk 0:01:04]} 43. Rxg6+ {[%clk
0:16:12]} 43... Kh7 {[%clk 0:01:17]} 44. Rf6 {[%clk 0:16:27]} 44... Qxb3 {[%clk
0:00:50]} 45. Qxc1 {[%clk 0:16:28]} 1-0

[Variant "Standard"]
[Site "Europe Echecs"]